Cogmind - Beta 12 @@@ ROGUE MODE // 2023.10.07 @ 04:27:18 Player: Luminiferous Result: Self-destructed Performance ------------- Evolutions (1) 500 Regions Visited (4) 800 Robots Destroyed (8) 40 Value Destroyed (120) 120 Prototype IDs (0) 0 Alien Tech Used (0) 0 Bonus (0) 0 TOTAL SCORE: 1460 Bonus ------- None Cogmind --------- Core Integrity 2/400 Matter 227/300 Energy 100/100 System Corruption 0% Temperature Cool (0) Movement Core (50) Location -9/Storage Parts ------- > --- POWER (1) -------- (None) > --- PROPULSION (2) --- (None) > --- UTILITY (4) ------ (None) > --- WEAPON (2) ------- (None) > --- INVENTORY (5) ---- (None) Peak State ------------ > --- POWER ------------ (None) > --- PROPULSION ------- Flight Unit Flight Unit > --- UTILITY ---------- (None) > --- WEAPON ----------- Rocket Launcher > --- INVENTORY -------- (None) [Rating: 4] Favorites ----------- Power None Propulsion Flight Unit Flight Unit Flight Unit Utility None Weapon Rocket Launcher Launcher Rocket Launcher Build | -11 -10 -10 -9 -9 ------- Run | Jun Mat Min Mat Sto Slots Evolved 2 | . . . 2 . Power . | . . . . . Propulsion . | . . . . . Utility 2 | . . . 2 . Weapon . | . . . . . Parts Attached 3 | . . 3 . . Power . | . . . . . Engine . | . . . . . Core . | . . . . . Reactor . | . . . . . Propulsion 2 | . . 2 . . Treads . | . . . . . Leg . | . . . . . Wheel . | . . . . . Hover . | . . . . . Flight 2 | . . 2 . . Utility . | . . . . . Device . | . . . . . Storage . | . . . . . Processor . | . . . . . Hackware . | . . . . . Protection . | . . . . . Artifact . | . . . . . Weapon 1 | . . 1 . . Energy Gun . | . . . . . Energy Cannon . | . . . . . Ballistic Gun . | . . . . . Ballistic Cannon . | . . . . . Launcher 1 | . . 1 . . Special Weapon . | . . . . . Impact Weapon . | . . . . . Slashing Weapon . | . . . . . Piercing Weapon . | . . . . . Special Melee Weapon . | . . . . . Unidentified Prototypes . | . . . . . Parts Lost 3 | . . . 2 1 Power . | . . . . . Propulsion 2 | . . . 1 1 Utility . | . . . . . Weapon 1 | . . . 1 . Highest Loss Streak 3 | . . . 2 3 To Critical Strikes . | . . . . . Average Slot Usage (%) 14 | . . 15 31 3 Flight 4 | . . 2 22 3 Launcher 9 | . . 12 9 . Naked Turns 120 | . 13 28 . 79 Heaviest Build 4 | . . 4 4 . Greatest Support 8 | 3 3 8 8 4 Greatest Overweight (x) 1 | . . 1 . . Average Overweight (x) . | . . . . . Largest Inventory Capacity 5 | 5 5 5 5 5 Average Capacity 5 | 5 5 5 5 5 Most Carried 2 | . . 2 . . Average Carried . | . . . . . Final Capacity 5 | 5 5 5 5 5 Final Carried . | . . . . . Class Distribution -------------------- 100% | Mutant Dominant Class ---------------- Mutant | -10/Materials Mutant | -10/Mines Mutant | -9/Materials Mutant | -9/Storage Resources | -11 -10 -10 -9 -9 ----------- Run | Jun Mat Min Mat Sto Matter Collected 252 | 78 . 78 96 . Remotely . | . . . . . Salvage Created 40 | . . 24 16 . Parts 10 | . . 8 2 . Haulers Intercepted . | . . . . . Recyclers Shooed . | . . . . . Parts Field Recycled . | . . . . . Retrieved Matter . | . . . . . Parts Self-Destructed . | . . . . . Prevented . | . . . . . Kills | -11 -10 -10 -9 -9 ------- Run | Jun Mat Min Mat Sto Combat Hostiles Destroyed 7 | . . 6 1 . AOE 7 | . . 6 1 . Classes Destroyed 3 | . . 1 2 . Watcher 1 | . . . 1 . Swarmer 6 | . . 6 . . Grunt 1 | . . . 1 . Best Kill Streak 3 | . . 3 2 . Combat Bots Only 3 | . . 3 1 . Max Kills in Single Turn 2 | . . 2 2 . Gunslinging . | . . . . . Exploded 2 | . . 2 1 . Melee . | . . . . . Uniques/NPCs Destroyed . | . . . . . Combat | -11 -10 -10 -9 -9 -------- Run | Jun Mat Min Mat Sto Damage Taken 558 | . . 63 142 353 Core 436 | . . 38 59 339 Absorbed by Shields 28 | . . . . 28 Core Remaining (%) 92 | 100 . 84 . . Volleys Fired 10 | . . 4 6 . Largest 1 | . . 1 1 . Hottest 33 | . . 33 33 . Shots Fired 10 | . . 4 6 . Gun . | . . . . . Cannon . | . . . . . Launcher 10 | . . 4 6 . Special . | . . . . . Kinetic . | . . . . . Thermal . | . . . . . Explosive 10 | . . 4 6 . Electromagnetic . | . . . . . Robot Hit Streak 2 | . . . 2 . Robot Miss Streak 5 | . . 4 5 . Penetration Max . | . . . . . Secondary Targets . | . . . . . Shots Hit Robots 3 | . . . 3 . Core Hits 9 | . . 6 3 . Critical Kills . | . . . . . Critical Parts Destroyed . | . . . . . Critical Strikes . | . . . . . Melee Attacks . | . . . . . Impact . | . . . . . Slashing . | . . . . . Piercing . | . . . . . Sneak Attacks . | . . . . . Combat Hostiles . | . . . . . Follow-up Attacks . | . . . . . Damage Inflicted 471 | . . 244 227 . Guns . | . . . . . Cannons . | . . . . . Explosions 471 | . . 244 227 . Melee . | . . . . . Ramming . | . . . . . Kinetic . | . . . . . Thermal . | . . . . . Explosive 471 | . . 244 227 . Electromagnetic . | . . . . . Impact . | . . . . . Slashing . | . . . . . Piercing . | . . . . . Highest Corruption . | . . . . . Average Corruption . | . . . . . Corruption Purged . | . . . . . Corruption Blocked . | . . . . . Overload Shots . | . . . . . Overflow Damage 30 | . . 18 12 . Projectiles . | . . . . . Explosions 30 | . . 18 12 . Melee . | . . . . . Knockbacks . | . . . . . Impact . | . . . . . Kinetic . | . . . . . Secondary . | . . . . . Self-Inflicted Damage 40 | . . 40 . . Shots 2 | . . 2 . . Rammed . | . . . . . Targets Rammed . | . . . . . Kicked . | . . . . . Crushed . | . . . . . Highest Temperature . | . . . . . Average Temperature . | . . . . . Received Heat Transfer 166 | . . . 39 127 Siege Activations . | . . . . . Robots Corrupted . | . . . . . Combat Hostiles . | . . . . . Parts Fried . | . . . . . Impact Corruptions . | . . . . . Robots Melted . | . . . . . Combat Hostiles . | . . . . . Parts Melted . | . . . . . Heat Transferred . | . . . . . Parts Sabotaged . | . . . . . Parts Stolen . | . . . . . Parts Stripped . | . . . . . Power Chain Reactions . | . . . . . Missiles Intercepted . | . . . . . Alert | -11 -10 -10 -9 -9 ------- Run | Jun Mat Min Mat Sto Peak Influence 193 | . . 193 117 64 Initial 44 | . . . . 44 Average 53 | . . 60 36 51 Maximum Alert Level . | . . . . . Low Security (%) 100 | 100 100 100 100 100 Level 1 . | . . . . . Level 2 . | . . . . . Level 3 . | . . . . . Level 4 . | . . . . . Level 5 . | . . . . . High Security . | . . . . . Max Security . | . . . . . Squads Dispatched 1 | . . . 1 . Investigation . | . . . . . Extermination . | . . . . . Reinforcement 1 | . . . 1 . Assault . | . . . . . Garrison . | . . . . . Intercept . | . . . . . Searches Triggered . | . . . . . Construction Impeded . | . . . . . Haulers Reinforced . | . . . . . Active Scanning Responses . | . . . . . Cargo Convoy Interrupts . | . . . . . Stealth | -11 -10 -10 -9 -9 --------- Run | Jun Mat Min Mat Sto Distress Signals 1 | . . . 1 . Communications Jammed . | . . . . . Distress Signals . | . . . . . Times Spotted 17 | . . 6 7 4 Peak Tracking Total 4 | . . 3 4 4 Tactical Retreats 1 | . . 1 . . Traps | -11 -10 -10 -9 -9 ------- Run | Jun Mat Min Mat Sto Traps Triggered 1 | . . . . 1 Indirectly . | . . . . . Trap Hack Attempts . | . . . . . Triggered . | . . . . . Disarmed . | . . . . . Reprogrammed . | . . . . . Reused . | . . . . . Traps Extracted . | . . . . . Installed . | . . . . . Triggered . | . . . . . Machines | -11 -10 -10 -9 -9 ---------- Run | Jun Mat Min Mat Sto Machines Disabled 1 | . . . 1 . Max in Single Turn 1 | . . . 1 . Machines Repaired . | . . . . . Machines Sabotaged . | . . . . . Overloaded Fab Kills . | . . . . . Hacking | -11 -10 -10 -9 -9 --------- Run | Jun Mat Min Mat Sto Machines Accessed 2 | . . . . 2 Terminals 2 | . . . . 2 Fabricators . | . . . . . Repair Stations . | . . . . . Recycling Units . | . . . . . Scanalyzers . | . . . . . Garrison Access . | . . . . . Total Hacks 2 | . . . . 2 Successful . | . . . . . Failed 2 | . . . . 2 Catastrophic 1 | . . . . 1 Database Lockouts . | . . . . . Manual 1 | . . . . 1 Terminals 2 | . . . . 2 Fabricators . | . . . . . Repair Stations . | . . . . . Recycling Units . | . . . . . Scanalyzers . | . . . . . Garrison Access . | . . . . . Terminal Hacks . | . . . . . Fabricator Hacks . | . . . . . Repair Station Hacks . | . . . . . Recycling Unit Hacks . | . . . . . Scanalyzer . | . . . . . Garrison Access Hacks . | . . . . . Unauthorized Hacks . | . . . . . Terminals . | . . . . . Fabricators . | . . . . . Repair Stations . | . . . . . Recycling Units . | . . . . . Scanalyzers . | . . . . . Garrison Access . | . . . . . Data Cores Recovered . | . . . . . Used . | . . . . . Hacking Detections . | . . . . . Full Trace Events . | . . . . . Feedback Events . | . . . . . Feedback Blocked . | . . . . . Robot Schematics Acquired . | . . . . . Robots Built . | . . . . . Authchips . | . . . . . Time . | . . . . . Total Robot Build Rating . | . . . . . Part Schematics Acquired . | . . . . . Parts Built . | . . . . . Authchips . | . . . . . Time . | . . . . . Total Part Build Rating . | . . . . . Parts Repaired . | . . . . . Time . | . . . . . Parts Recycled . | . . . . . Recycled Matter . | . . . . . Retrieved Matter . | . . . . . Retrieved Components . | . . . . . Parts Scanalyzed . | . . . . . Part Schematics Acquired . | . . . . . Parts Damaged . | . . . . . Bothacking | -11 -10 -10 -9 -9 ------------ Run | Jun Mat Min Mat Sto Used RIF Installer . | . . . . . Robots Hacked . | . . . . . Non-combat . | . . . . . Combat . | . . . . . Robot Hacks Applied . | . . . . . Relay Couplers Released . | . . . . . Fabnet Peak Effective % . | . . . . . Robots Rewired . | . . . . . Allies Hacked . | . . . . . Hacks Repelled . | . . . . . Allies | -11 -10 -10 -9 -9 -------- Run | Jun Mat Min Mat Sto Total Allies . | . . . . . Largest Group . | . . . . . Highest-Rated Group . | . . . . . Highest-Rated Ally . | . . . . . Total Orders . | . . . . . Ally Attacks . | . . . . . Total Damage . | . . . . . Kills . | . . . . . Allies Corrupted . | . . . . . Allies Melted . | . . . . . Intel | -11 -10 -10 -9 -9 ------- Run | Jun Mat Min Mat Sto Robot Analysis Total . | . . . . . Derelict Logs Recovered . | . . . . . Drone Launches . | . . . . . Drone Recoveries . | . . . . . Exploration | -11 -10 -10 -9 -9 ------------- Run | Jun Mat Min Mat Sto Turns Passed 604 | 11 13 411 61 108 Spaces Moved 851 | 21 25 493 133 179 Core 535 | 21 25 382 . 107 Treads . | . . . . . Legs . | . . . . . Wheels . | . . . . . Hover . | . . . . . Flight 316 | . . 111 133 72 Fastest Speed 37 | 50 50 37 37 40 Average Speed 64 | 50 50 80 37 45 Slowest Speed 100 | 50 50 100 40 50 Overloaded Moves . | . . . . . Propulsion Burnouts . | . . . . . Robots Hopped 4 | . . 4 . . Cave-ins Triggered . | . . . . . Exploration Rate (%) 28 | 3 10 74 18 38 Regions Visited 4 Branch Regions 2 Pre-discovered Areas . | . . . . . Known Exits Taken . | . . . . . Unknown Exits Taken 4 | 1 1 1 1 . Scrap Searched 2 | . . 2 . . Spaces Dug . | . . . . . Terrain Destroyed 82 | . . 41 41 . Melee . | . . . . . Projectile . | . . . . . AOE 82 | . . 41 41 . Terrain Rammed . | . . . . . Walls Destroyed . | . . . . . Machines Disabled . | . . . . . Actions | -11 -10 -10 -9 -9 --------- Run | Jun Mat Min Mat Sto Total 885 | 21 24 498 138 204 Wait 14 | 1 . . . 13 Move 839 | 20 24 484 132 179 Hop 4 | . . 4 . . Pick Up 3 | . . 3 . . Fast Attach . | . . . . . Attach 3 | . . 3 . . Detach . | . . . . . Swap . | . . . . . Drop . | . . . . . Fire 10 | . . 4 6 . Melee . | . . . . . Ram . | . . . . . Kick . | . . . . . Crush . | . . . . . Escape Stasis 11 | . . . . 11 Rewire 1 | . . . . 1 Trap . | . . . . . Miscellaneous . | . . . . . Route ------- -11/Junkyard -10/Materials -10/Mines -9/Materials -9/Storage History --------- Turn | Location | Event 6 | -11/Junkyard | Discovered new exit (range 13) 12 | -11/Junkyard | Entered Materials 16 | -10/Materials | Discovered new exit (range 15) 25 | -10/Materials | Entered Mines 32 | -10/Mines | Received a Rocket Launcher from a helpful Derelict 302 | -10/Mines | Build established: Mutant 434 | -10/Mines | Discovered new exit (range 5) 436 | -10/Mines | Entered Materials 436 | -9/Materials | Evolved 2 slots: Utility x2 495 | -9/Materials | Discovered new exit (range 6) 497 | -9/Materials | Entered Storage 539 | -9/Storage | Core integrity fell below 50% 557 | -9/Storage | Lost 3 parts (2n1w) 593 | -9/Storage | Core integrity fell below 20% 605 | -9/Storage | Self-destructed Last Messages --------------- 00527_ Field strength at 94. 00527_ Field strength at 88. 00528_ Field strength at 82. 00529_ Field strength at 68. 00530_ Field strength at 62. 00531_ Field strength at 56. 00532_ Critical hit (Burn: +26). 00532_ Field strength at 42. 00533_ Field strength at 36. 00534_ Field strength at 30. 00535_ Field strength at 16. 00536_ Field strength at 10. 00537_ Field strength at 4. 00538_ Stasis field depleted. 00543_ Two rows of pristine grunt class robots stand immobile, all facing the entryway as if waiting for something. 00544_ Connecting with Terminal... 00544_ Attempting to rewire G-34 Mercenary. 00568_ K-01 Serf collects debris. 00592_ Critical hit (Burn: +37). Map ----- +----------------------------------------------------+ | #???????????? | | ####+######+##+######???????????? | | # ### ## [ ####????????? | | # #?# """"" ## """#????????? | | # #?# "???" ## R"#????????? | | #/### ""??" ## """ """ """#????????? | | ## "??"" ## """ """ ####????????? | | ## "???" ## """ """ #???????????? | | ## """"" ## #???????????? | | # ## #???????????? | | ## ###"T"######???????????? | | ###########?#"""#????????????????? | | #???????????#####????????????????? | | #???????????# ???????????????????? | | #???????????# ???????????????????? | | ########???????# ???????????????????? | | #???????# ??????????????????? | | #???????# ??????????????????? | | ### #?# ??????????????????? | | #?##/##????????????????? | | ##+###### #?# ####?????????????? | | ## #???#?# #?????????????? | | ## #?????# ##+#####?????????? | | ## #?????## ## ####??????? | | ## #??????# ## """" """#??????? | | #######+## ##### ## """"@ R"#??????? | | ##??# ## """" """#??????? | | ????# ###/##### ## """" ####??????? | | ????# # ## ## #?????????? | | ##??# + ## #########?????????? | | #??# # # # #?????????? | | #### # + + """#?????????? | | + + # # """#?????????? | | ######## ##### """#?????????? | | #??????########???# #?????????? | | #?????????????????# #?????????? | | ##?????????????????########?????????? | | ????????????????????????????????????? | | ????????????????????????????????????? | | ????????????????????????????????????? | | ????????????????????????????????????? | | ????????????????????????????????????? | | ????????????????????????????????????? | | ????????????????????????????????????? | | ????????????????????????????????????? | | ????????????????????????????????????? | | ????????????????????????????????????? | | ????????????????????????????????????? | | ????????????????????????????????????? | | ????????????????????????????????????? | +----------------------------------------------------+ Best States ------------- Heat Dissipation 28 Energy Generation 5 Energy Capacity 100 Matter Stores 278 Matter Capacity 300 Sight Range 16 Terrain Scan Density 10 Evasion (%) 62 Item Schematics ----------------- None Robot Schematics ------------------ None Fabricated ------------ Nothing Alien Tech Used ----------------- None Achievements -------------- None Challenges ------------ None Game ------ Seed CoilBombardmentFacilitator Manual? 0 Play Time 00:05:40 Cumulative 7.3 hours Start 2023.10.07 @ 04:23:02 End 2023.10.07 @ 04:27:18 Sessions 1 Manual Loads 0 Difficulty Rogue Special Mode None Game No. 27 Rogue 27 Adventurer 0 Explorer 0 Win Type - Total 0 Types 0/0/0/0/0/0/0/0/0 Lore% 6 Gallery% 16 Achievement% 20 Wizard Run 0 Options --------- ASCII 0 Keyboard 0 Movement Mouse Keybinds 1 Fullscreen 1 Font 18/Smallcaps Map View 76x50 Tactical HUD 1 Map Filters SHIFT_HUE(270)|BRIGHTNESS(75) Filters SHIFT_HUE(90)|BRIGHTNESS(125) Steam 1 RUN: 1c84fa28-3aa2-4669-84af-cc1687f1a778